[Event "88th Tata Steel Masters 2026"]
[White "Gukesh D"]
[Black "Giri,Anish"]
[Site "Wijk aan Zee"]
[Round "7.4"]
[Annotator "TA"]
[Result "0-1"]
[Date "2026.01.24"]
[WhiteElo "2754"]
[BlackElo "2760"]
[PlyCount "74"]
[TimeControl "60"]

{[%evp 10,74,4,6,29,-2,4,-8,0,-14,0,0,4,6,0,0,0,0,3,-4,0,0,0,0,0,0,6,0,0,-11,-10,-20,0,0,7,-53,-83,-78,-81,-104,-117,-110,-63,-80,-79,-83,-75,-79,-84,-88,-76,-88,-87,-525,-534,-518,-527,-916,-916,-908,-882,-885,-882,-765,0,-721,-677]} 1. c4 {[%emt 0:0:0]} e5 {[%emt 0:0:0]} 2. Nc3 {[%emt 0:0:0]} Nf6 {[%emt 0:0:0]} 3. Nf3 {[%emt 0:0:0]} Nc6 {[%emt 0:0:0]} 4. g3 {[%emt 0:0:0]} d5 {[%emt 0:0:0]} 5. cxd5 {[%emt 0:0:0]} Nxd5 {[%emt 0:0:0]} 6. Bg2 {[%emt 0:0:0][%cal Yf3e5]} Bc5 {[%emt 0:0:0] A29: English Opening: Four Knights Variation with 4 g3.} 7. d3 {[%emt 0:0:0]} O-O {[%emt 0:0:0]} 8. Qb3 $146 {[%emt 0:0:0]} ({Predecessor:} 8. O-O h6 9. Bd2 Nf6 10. Rc1 a5 11. Na4 Bd6 12. a3 Re8 13. Be3 Rb8 14. h3 Be6 15. Nc5 Bd5 16. Qa4 Qe7 {½-½ Nihal,S (2716)-Vidit,S (2708) Tata Steel India Blitz 2026 (16)} )Nde7 {[%emt 0:0:0] The position is equal.} 9. O-O {[%emt 0:0:0]} h6 {[%emt 0:0:0]} 10. a3 {[%emt 0:0:44]} Nd4 {[%emt 0:14:26]} 11. Nxd4 {[%emt 0:10:18]} exd4 {[%emt 0:2:38]} 12. Ne4 {[%emt 0:5:49]} Bb6 {[%emt 0:0:56]} 13. Qc2 {[%emt 0:0:35]} a5 {[%emt 0:2:8]} 14. Bd2 {[%emt 0:11:51]} a4 {[%emt 0:2:19]} 15. Bb4 {[%emt 0:10:23]} Re8 {[%emt 0:4:46]} 16. Nc5 {[%emt 0:5:24]} Bxc5 $1 {[%emt 0:3:17]} 17. Bxc5 {[%emt 0:0:36]} Nf5 {[%emt 0:10:57]} 18. Be4 {[%emt 0:11:29]} Ra6 {[%emt 0:7:21]} 19. e3 {[%emt 0:12:48]} dxe3 {[%emt 0:12:52]} 20. fxe3 {[%emt 0:0:38]} Qg5 {[%emt 0:1:9]} 21. Rf4 {[%emt 0:8:23]} b6 {[%emt 0:4:4]} 22. Qc4 {[%emt 0:2:6]} Ra7 $15 {[%emt 0:10:31] Dancing on a razor blade.} 23. Bb4 {[%emt 0:5:54]} c5 {[%emt 0:2:35] [#]} 24. Qb5 {[%emt 0:1:55][%csl Yb6,Ye8]} Rae7 {[%emt 0:6:12] White must now prevent ...Nxg3.} 25. Bd2 {[%emt 0:2:5][%cal Ye4c6]} Nd6 {[%emt 0:8:10]} ({Black should try} 25... Nxg3 $17 26. hxg3 Rxe4 (26... Qxg3+ 27. Bg2 $16 )27. dxe4 Qxg3+ 28. Kh1 Rd8 )26. Qxb6 {[%emt 0:0:43]} Nxe4 {[%emt 0:0:39]} 27. dxe4 {[%emt 0:0:34]} Rxe4 {[%emt 0:3:7]} 28. Rxe4 {[%emt 0:5:12]} Rxe4 {[%emt 0:0:31]} 29. Qc6 {[%emt 0:0:41][%csl Yc8,Ye4] Prevents Qd5.} Qg4 {[%emt 0:1:11]} 30. Qxc5 {[%emt 0:1:34]} Rc4 {[%emt 0:1:52] Dodges Bc3} 31. Qd6 {[%emt 0:3:49][%mdl 8192]} (31. Qd5 $17 {is tougher.} )Qe4 $19 {[%emt 0:1:52] [#] ( -> ...Bh3)} 32. Kf2 {[%emt 0:4:42] White is weak on the light squares} Bb7 {[%emt 0:3:27]} 33. Rf1 {[%emt 0:0:39]} Rc6 {[%emt 0:1:56]} 34. Qd8+ {[%emt 0:3:52]} Kh7 {[%emt 0:0:32]} 35. Bc3 {[%emt 0:1:58] Dodges Rf6+} Rxc3 {[%emt 0:3:45]} 36. bxc3 {[%emt 0:0:35]} Qg2+ {[%emt 0:1:22]} 37. Ke1 {[%emt 0:0:33]} Ba6 {[%emt 0:0:32] Weighted Error Value: White=0.49/Black=0.25 (precise)   Loses game:     	White=1     	---        Mistake:       	White=1     	Black=1      Inaccurate:     	White=2     	---        OK:         	White=5     	Black=5      Best:        	---       	Black=1      Strong:       	---       	Black=1} 0-1

[Event "88th Tata Steel Masters 2026"]
[White "Sindarov,Javokhir"]
[Black "Niemann,Hans Moke"]
[Site "Wijk aan Zee"]
[Round "7.5"]
[Annotator "TA"]
[Result "1/2-1/2"]
[Date "2026.01.24"]
[WhiteElo "2726"]
[BlackElo "2725"]
[PlyCount "167"]
[TimeControl "60"]

{[%evp 16,167,35,23,24,9,10,6,7,8,8,2,1,0,1,0,0,0,0,0,41,32,40,31,62,24,26,21,27,25,35,20,25,25,28,14,25,0,60,20,20,20,28,18,23,23,30,29,31,25,25,25,27,25,29,23,31,0,29,31,23,23,23,23,24,24,31,29,33,27,31,27,40,2,35,13,11,9,11,0,6,0,0,0,0,0,0,0,11,0,0,0,0,-56,-56,-71,-71,-71,-71,-71,-71,-71,-71,-71,-71,-71,-71,-71,-47,-47,-47,-47,-47,-47,-47,-47,-8,-29,-5,-5,-5,-5,-5,-78,-78,-78,-78,-78,-78,-85,-85,-85,-85,-77,0,0,0,0,0,0,0,0,0,0,0,0,0,0,0,0,0,0,0,0]} 1. e4 {[%emt 0:0:0]} e5 {[%emt 0:0:0]} 2. Nf3 {[%emt 0:0:0]} Nc6 {[%emt 0:0:0]} 3. Bb5 {[%emt 0:0:0]} a6 {[%emt 0:0:0]} 4. Ba4 {[%emt 0:0:0]} Nf6 {[%emt 0:0:0]} 5. O-O {[%emt 0:0:0]} Be7 {[%emt 0:0:0]} 6. Re1 {[%emt 0:0:0]} b5 {[%emt 0:0:0]} 7. Bb3 {[%emt 0:0:0]} O-O {[%emt 0:0:0]} 8. h3 {[%emt 0:0:0]} Bb7 {[%emt 0:0:0]} 9. d3 {[%emt 0:0:0]} d6 {[%emt 0:0:0] 9...d5 injects fresh life into this line. C88: Closed Ruy Lopez: Anti-Marshall Systems.} 10. Bd2 {[%emt 0:0:0]} Qd7 {[%emt 0:0:0]} 11. a4 {[%emt 0:0:0]} Nd8 {[%emt 0:0:0]} 12. axb5 {[%emt 0:0:0]} axb5 {[%emt 0:0:0]} 13. Rxa8 {[%emt 0:0:0]} Bxa8 {[%emt 0:0:0]} 14. Nc3 {[%emt 0:0:0]} c5 {[%emt 0:1:25]} 15. Qb1 $146 {[%emt 0:27:6]} ({Predecessor:} 15. Bg5 Ne6 16. Bxf6 Bxf6 17. Nd5 Bd8 18. Qa1 Bc6 19. Qa2 g6 20. Ra1 Kg7 21. Qa7 {½-½ Perez Candelario,M (2586)-Svane,R (2625) ESP-chT CECLUB Honor 2021 (2.4)} )Ne6 {[%emt 0:6:15]} 16. Bxe6 {[%emt 0:0:54]} fxe6 {[%emt 0:0:44]} 17. b4 {[%emt 0:0:56] bxc5 would now be deadly.} cxb4 {[%emt 0:13:39]} 18. Qxb4 {[%emt 0:0:53]} Bc6 {[%emt 0:0:58]} 19. Qb3 {[%emt 0:2:32]} h6 {[%emt 0:20:59] Inhibits Ng5.} 20. Ra1 {[%emt 0:17:50] White plays on the queen side and is better White is more active.} Rb8 {[%emt 0:4:4]} 21. Be3 {[%emt 0:1:33]} Bf8 {[%emt 0:1:14]} 22. Ra7 {[%emt 0:7:1]} Qc8 {[%emt 0:1:1]} 23. Ne2 {[%emt 0:10:0]} Bd7 {[%emt 0:1:36]} 24. Qa2 {[%emt 0:7:17]} Rb7 {[%emt 0:1:29]} 25. Ra8 {[%emt 0:0:40]} Rb8 {[%emt 0:0:35]} 26. Ra7 {[%emt 0:0:39]} Rb7 {[%emt 0:0:40]} 27. Rxb7 {[%emt 0:4:26]} Qxb7 {[%emt 0:0:38]} 28. Bd2 {[%emt 0:0:36]} Ne8 {[%emt 0:3:33]} 29. g4 {[%emt 0:7:40]} Nf6 {[%emt 0:2:29][%cal Yf6e4] [#] ...Nxe4! is the strong threat.} 30. Ng3 {[%emt 0:1:19]} Bc8 {[%emt 0:4:13]} 31. Bb4 {[%emt 0:1:58]} Qa6 {[%emt 0:0:48]} 32. Qb3 {[%emt 0:1:43]} Bd7 {[%emt 0:4:52]} 33. Kg2 {[%emt 0:1:5]} Qa8 {[%emt 0:2:26]} 34. Qc3 {[%emt 0:1:27]} Qa7 {[%emt 0:1:48]} 35. Nh4 {[%emt 0:6:33]} Kh7 {[%emt 0:2:58] Inhibits Ng6.} 36. Nf3 {[%emt 0:0:52]} Kg8 {[%emt 0:0:44]} 37. Qb2 {[%emt 0:1:10]} Qa8 {[%emt 0:1:43]} 38. Qb3 {[%emt 0:1:24]} Qa4 {[%emt 0:2:8]} 39. Qb1 {[%emt 0:2:15]} Bc6 {[%emt 0:1:43]} 40. Qb2 {[%emt 0:0:0]} Bd7 {[%emt 0:0:0]} 41. Kf1 {[%emt 0:29:33]} Be8 {[%emt 0:26:0]} 42. Qc3 {[%emt 0:2:16]} Bd7 {[%emt 0:3:2]} 43. Ke2 {[%emt 0:2:10]} Be8 {[%emt 0:2:24]} 44. Nd2 {[%emt 0:11:32]} (44. Nf1 {keeps more tension.} d5 45. Bxf8 dxe4 46. Nxe5 Nd5 47. Qc5 )Bd7 {[%emt 0:0:52]} 45. Qb3 {[%emt 0:5:14]} Qxb3 {[%emt 0:2:43]} 46. Nxb3 {[%emt 0:0:9]} Kf7 {[%emt 0:0:13]} 47. f3 {[%emt 0:0:14]} Ne8 {[%emt 0:1:41]} 48. h4 {[%emt 0:0:36]} Nc7 {[%emt 0:0:32]} 49. Ba5 {[%emt 0:0:30]} Na6 {[%emt 0:1:19]} 50. h5 {[%emt 0:0:10]} d5 {[%emt 0:2:57]} 51. Nf1 {[%emt 0:1:26]} Bd6 {[%emt 0:2:21]} 52. Be1 {[%emt 0:0:56]} Nb4 {[%emt 0:3:33]} 53. Ne3 {[%emt 0:5:29]} d4 {[%emt 0:1:26]} 54. Bxb4 {[%emt 0:0:3]} (54. c3 $11 )Bxb4 $11 {[%emt 0:0:4][%mdl 4096] Endgame KBB-KNN} 55. Ng2 {[%emt 0:0:16]} Bd6 {[%emt 0:1:38]} 56. Nh4 {[%emt 0:1:38]} Kf6 {[%emt 0:0:10]} 57. Kf2 {[%emt 0:0:32]} Kg5 {[%emt 0:1:15]} 58. Kg3 {[%emt 0:0:20]} Be8 {[%emt 0:0:7]} 59. Ng2 {[%emt 0:0:28]} g6 {[%emt 0:2:13]} 60. hxg6 {[%emt 0:0:11]} Bxg6 {[%emt 0:0:12]} 61. Kh3 {[%emt 0:15:47]} h5 {[%emt 0:16:16]} 62. Kg3 {[%emt 0:0:24]} Be8 {[%emt 0:0:32]} 63. Kh3 {[%emt 0:0:25]} Bb4 {[%emt 0:2:16]} 64. Kg3 {[%emt 0:0:26]} Bf8 {[%emt 0:2:24]} 65. Kh3 {[%emt 0:0:48]} Bh6 {[%emt 0:1:3]} 66. Kg3 {[%emt 0:4:33]} Kf6 {[%emt 0:0:7]} 67. Kh4 {[%emt 0:1:7]} Bg5+ {[%emt 0:0:7]} 68. Kg3 {[%emt 0:0:3]} Ke7 {[%emt 0:2:21]} 69. gxh5 {[%emt 0:0:48]} (69. Kh3 $11 )Bxh5 $17 {[%emt 0:0:5]} 70. Kf2 {[%emt 0:0:13]} Kd6 {[%emt 0:0:33]} 71. Ke2 {[%emt 0:0:29]} Kc6 {[%emt 0:0:53]} 72. Ne1 {[%emt 0:0:6]} Kb6 {[%emt 0:0:49]} 73. Ng2 {[%emt 0:0:22]} b4 {[%emt 0:2:18]} 74. Nd2 {[%emt 0:0:20]} Bxd2 {[%emt 0:0:39]} (74... Kc5 $17 )75. Kxd2 $11 {[%emt 0:0:5] The position is equal.} Bxf3 $17 {[%emt 0:0:23] KB-KN. Black is a pawn up.} 76. Ne1 {[%emt 0:0:37]} Bh5 {[%emt 0:1:6]} 77. Kc1 {[%emt 0:0:9]} Kb5 {[%emt 0:0:32]} 78. Kb2 {[%emt 0:0:2]} Ka4 {[%emt 0:0:4]} 79. Ng2 {[%emt 0:1:58]} Bd1 {[%emt 0:1:50]} 80. Ne1 {[%emt 0:0:46]} Kb5 {[%emt 0:0:40]} 81. Kb3 {[%emt 0:1:1]} Kc5 {[%emt 0:0:12]} 82. Ng2 {[%emt 0:0:0]} Kd6 {[%emt 0:0:31]} 83. Ne1 {[%emt 0:0:16]} Kc5 {[%emt 0:0:9]} 84. Ng2 {[%emt 0:0:0] Weighted Error Value: White=0.09 (flawless) /Black=0.04 (flawless)   Mistake:       	White=2     	Black=1      Inaccurate:     	White=3     	Black=4      OK:         	White=18    	Black=17     Best:        	---       	Black=1} 1/2-1/2

[Event "88th Tata Steel Masters 2026"]
[White "Van Foreest,Jorden"]
[Black "Aravindh,Chithambaram VR."]
[Site "Wijk aan Zee"]
[Round "7.6"]
[Annotator "TA"]
[Result "1-0"]
[Date "2026.01.24"]
[WhiteElo "2703"]
[BlackElo "2700"]
[PlyCount "99"]
[TimeControl "60"]

{[%evp 14,98,43,29,63,61,85,80,91,84,94,87,114,89,90,91,92,91,101,93,96,102,99,98,94,91,141,140,140,138,143,137,139,121,122,127,145,137,167,129,140,146,163,155,156,132,150,143,138,124,168,138,122,122,168,144,175,135,139,137,145,115,130,122,133,138,237,190,190,190,186,183,197,203,271,274,283,270,273,256,245,238,328,328,518,513,576]} 1. Nf3 {[%emt 0:0:0]} Nf6 {[%emt 0:0:0]} 2. c4 {[%emt 0:0:0]} g6 {[%emt 0:0:0]} 3. Nc3 {[%emt 0:0:0]} Bg7 {[%emt 0:0:0]} 4. e4 {[%emt 0:0:0]} d6 {[%emt 0:0:0]} 5. d4 {[%emt 0:0:0][%cal Yd2d4,Yd4d5][%mdl 32]} O-O {[%emt 0:0:0]} 6. Be2 {[%emt 0:0:0]} e5 {[%emt 0:0:0]} 7. O-O {[%emt 0:0:0]} Na6 {[%emt 0:0:0]} 8. Be3 {[%emt 0:0:0]} Bg4 {[%emt 0:0:0][%cal Yc8g4,Yg4d7,Yd7h3][%mdl 32] 8...Qe7 is a critical line. E94: King's Indian: Classical: 6 Be2 e5 7 0-0: Various Black 7th moves.} 9. d5 {[%emt 0:0:0]} c5 {[%emt 0:1:36]} 10. a3 {[%emt 0:0:0]} Bd7 {[%emt 0:2:39] White is better.} 11. Bg5 {[%emt 0:0:0]} h6 $146 {[%emt 0:2:18]} ({Predecessor:} 11... Nc7 12. b4 b6 13. Qc2 a5 14. b5 Bg4 15. h3 Bxf3 16. Bxf3 Qb8 17. Be2 Nd7 18. Be7 Re8 19. Bxd6 {1-0 Cavadas,J (1550)-Sousa,A (1151) Leiria op 5th 2017 (4)} )12. Bd2 {[%emt 0:0:0]} Ne8 {[%emt 0:9:21]} 13. g3 {[%emt 0:0:0]} Bh3 {[%emt 0:10:30]} 14. Re1 {[%emt 0:0:0]} Kh7 {[%emt 0:0:45]} 15. Bd3 {[%emt 0:0:21]} (15. Bf1 {simplifies} Bxf1 16. Rxf1 Nb8 17. Kg2 )Bg4 {[%emt 0:2:16]} 16. Kg2 {[%emt 0:0:38]} Qd7 {[%emt 0:2:1]} 17. Qc2 {[%emt 0:3:36]} Bxf3+ {[%emt 0:8:27]} 18. Kxf3 {[%emt 0:0:35]} Qh3 {[%emt 0:0:49]} 19. Bf1 {[%emt 0:4:58] Active counter play!} Qd7 {[%emt 0:13:29]} (19... Qxh2 $142 20. Bd3 Qh5+ 21. Kg2 Qg4 )20. Kg2 $16 {[%emt 0:2:0]} h5 {[%emt 0:0:36]} 21. Qc1 {[%emt 0:18:8]} Nf6 {[%emt 0:2:45]} 22. Bd3 {[%emt 0:1:16]} Ng8 {[%emt 0:0:46]} 23. Rf1 {[%emt 0:1:21]} Rae8 {[%emt 0:3:12]} 24. Bc2 {[%emt 0:0:36]} Re7 {[%emt 0:0:59]} 25. Qd1 {[%emt 0:4:12]} Qd8 {[%emt 0:8:39]} 26. Rb1 {[%emt 0:17:29]} Nc7 {[%emt 0:1:53]} 27. b4 {[%emt 0:0:50]} Ne8 {[%emt 0:0:36]} 28. Bg5 {[%emt 0:0:41]} f6 {[%emt 0:1:44] Black is weak on the light squares} 29. Be3 {[%emt 0:1:14]} Bh6 {[%emt 0:0:51]} 30. f4 {[%emt 0:1:0]} (30. bxc5 Bxe3 31. fxe3 dxc5 $11 )b6 {[%emt 0:0:48] White has space advantage and is better} 31. Qf3 {[%emt 0:2:6]} Ng7 {[%emt 0:9:54]} 32. bxc5 {[%emt 0:1:45]} bxc5 {[%emt 0:0:48]} 33. f5 {[%emt 0:3:9]} Qe8 {[%emt 0:1:21]} (33... Bxe3 $16 34. Qxe3 Nh6 )34. Bg1 {[%emt 0:7:50]} Bd2 {[%emt 0:1:9]} 35. fxg6+ {[%emt 0:0:48][%csl Yf6] White attacks a weakness} Qxg6 {[%emt 0:0:59]} 36. Nb5 {[%emt 0:1:13]} Ne8 {[%emt 0:8:36][%csl Yb5] Strong Square White (b5)} 37. Qe2 {[%emt 0:2:44]} Bg5 {[%emt 0:0:59]} 38. Kh1 {[%emt 0:0:34]} h4 {[%emt 0:2:43]} 39. gxh4 {[%emt 0:3:1]} Bf4 {[%emt 0:1:21]} (39... Bxh4 $16 {might work better.} 40. Nxd6 Nxd6 )40. Bf2 {[%emt 0:0:0]} Nh6 {[%emt 0:0:0]} 41. Rg1 {[%emt 0:31:16]} Qf7 {[%emt 0:24:52]} 42. Qf3 $36 {[%emt 0:1:56][%mdl 2048] White has strong initiative.} Rg8 {[%emt 0:0:39]} 43. Nc3 {[%emt 0:3:45][%cal Yb5c3,Yc3e2,Ye2g3,Yg3e4][%mdl 32] aiming for Ne2.} Rb7 {[%emt 0:3:0]} 44. Ne2 {[%emt 0:2:52]} Rxb1 {[%emt 0:1:23]} 45. Rxb1 {[%emt 0:0:24]} (45. Bxb1 Rxg1+ 46. Kxg1 Qg6+ 47. Kh1 Bd2 $16 )Bd2 {[%emt 0:0:5]} 46. Rd1 {[%emt 0:3:5]} Ba5 {[%emt 0:0:6]} 47. Ng3 {[%emt 0:1:17]} f5 {[%emt 0:2:24]} 48. exf5 {[%emt 0:1:0]} ({Don't do} 48. Nxf5 Ng4 49. Rb1 Bd2 )Nf6 {[%emt 0:0:5]} (48... Kh8 $142 49. Be3 Ng4 )49. Be3 $18 {[%emt 0:1:3]} Rg4 {[%emt 0:1:4]} 50. Ne4 {[%emt 0:1:50] Weighted Error Value: White=0.10 (very precise) /Black=0.28 (precise)   Missed win:     	White=1     	---        Mistake:       	---       	Black=4      Inaccurate:     	---       	Black=4      OK:         	White=8     	Black=9      Best:        	White=1     	Black=1} 1-0

[Event "88th Tata Steel Masters 2026"]
[White "Erigaisi Arjun"]
[Black "Erdogmus,Yagiz Kaan"]
[Site "Wijk aan Zee"]
[Round "7.7"]
[Annotator "TA"]
[Result "0-1"]
[Date "2026.01.24"]
[WhiteElo "2775"]
[BlackElo "2658"]
[PlyCount "103"]
[TimeControl "60"]

{[%evp 9,102,18,14,0,23,12,27,5,65,72,48,42,51,58,58,57,55,59,61,56,52,42,49,37,65,49,44,47,41,29,50,39,36,49,35,48,62,65,47,62,51,47,56,52,75,35,23,0,0,0,-11,-6,-5,-52,0,-37,-5,-25,-20,-39,0,0,-6,-16,-26,-56,-38,-62,-11,-28,-44,-28,-28,-39,-54,-277,-298,-504,-492,-1024,-820,-1264,-1281,-1405,-1310,-1622,-1597,-3508,-3116,-5185,-5177,-29982,-29983,-5206,-29979]} 1. c4 {[%emt 0:0:0]} e5 {[%emt 0:0:0]} 2. g3 {[%emt 0:0:0]} Nf6 {[%emt 0:0:0][%cal Yg8f6,Yf6g4,Yg4f2][%mdl 32]} 3. Bg2 {[%emt 0:0:0]} c6 {[%emt 0:0:0]} 4. Nf3 {[%emt 0:0:0]} e4 {[%emt 0:0:0]} 5. Nd4 {[%emt 0:0:0]} d5 {[%emt 0:0:0]} 6. d3 {[%emt 0:0:0] A20: English Opening: 1...e5.} Qb6 {[%emt 0:0:0]} 7. Nb3 {[%emt 0:0:0]} Ng4 $146 {[%emt 0:2:33]} ({Predecessor:} 7... dxc4 8. dxc4 Qb4+ 9. Nc3 Be7 10. O-O O-O 11. Qc2 Qxc4 12. Nd2 Qe6 13. Ndxe4 Nxe4 14. Bxe4 {½-½ Nihal,S (2610)-Inarkiev,E (2693) TUR-chT Konya 2019 (2.5)} )8. O-O {[%emt 0:0:0] White has an edge.} (8. dxe4 $2 Qxf2+ 9. Kd2 Qxg2 $19 )e3 {[%emt 0:0:31]} (8... dxc4 $11 9. dxc4 Nd7 )9. f3 $14 {[%emt 0:1:48]} Nf2 {[%emt 0:0:33]} 10. Qc2 {[%emt 0:16:48]} Nh3+ {[%emt 0:0:36]} 11. Bxh3 {[%emt 0:2:18]} Bxh3 {[%emt 0:0:35]} 12. Rd1 {[%emt 0:7:53]} d4 {[%emt 0:37:13] [#]} 13. c5 {[%emt 0:0:54]} Qd8 {[%emt 0:1:52]} 14. Qc4 {[%emt 0:1:16]} Na6 {[%emt 0:1:54][%cal Yb8a6,Ya6b4,Yb4a2][%mdl 32]} 15. Qxd4 {[%emt 0:25:43]} Qxd4 {[%emt 0:0:58]} 16. Nxd4 {[%emt 0:0:34]} Bxc5 {[%emt 0:0:42]} 17. Bxe3 {[%emt 0:0:57]} O-O-O {[%emt 0:15:20]} 18. Nc2 {[%emt 0:0:40][%cal Yd4c2,Yc2e3,Ye3d1][%mdl 32]} Rhe8 {[%emt 0:15:25]} 19. Kf2 {[%emt 0:1:24][%cal Yg1f2,Yf2e1,Ye1d2][%mdl 32]} Nb4 {[%emt 0:3:15]} 20. Nba3 {[%emt 0:2:13]} Rxe3 {[%emt 0:6:1]} 21. Nxe3 {[%emt 0:0:40] Strongly threatening Rac1.} Be6 {[%emt 0:2:30] A strong pair of Bishops.} 22. d4 {[%emt 0:9:22]} Rxd4 {[%emt 0:4:57]} 23. Ke1 {[%emt 0:3:0]} Rxd1+ {[%emt 0:2:11]} 24. Nxd1 {[%emt 0:0:38]} Nxa2 {[%emt 0:0:47]} 25. Kd2 {[%emt 0:2:55]} b5 {[%emt 0:1:2]} 26. Nc2 {[%emt 0:2:55]} a5 {[%emt 0:0:40]} 27. Nc3 {[%emt 0:3:13]} Nxc3 {[%emt 0:0:38]} 28. bxc3 {[%emt 0:3:52][%mdl 4096] Endgame KRN-KB} a4 {[%emt 0:1:13]} 29. e4 {[%emt 0:6:12]} Kc7 {[%emt 0:1:3]} 30. f4 {[%emt 0:0:35]} g6 {[%emt 0:0:57]} 31. Nd4 {[%emt 0:2:18]} (31. Rd1 $11 {should be considered.} )Bc4 {[%emt 0:1:40]} (31... Bxd4 $1 $15 32. cxd4 Kb6 )32. e5 {[%emt 0:1:22]} Be7 {[%emt 0:3:14][%mdl 1024] Black has compensation.} 33. g4 {[%emt 0:2:20]} c5 {[%emt 0:0:46]} 34. Nc2 {[%emt 0:0:49]} Kc6 {[%emt 0:1:28]} 35. Ne3 {[%emt 0:2:1]} Bb3 {[%emt 0:0:31]} 36. f5 {[%emt 0:1:12]} Bg5 {[%emt 0:1:2]} 37. Kd3 {[%emt 0:1:4]} Bf4 {[%emt 0:1:49]} 38. Ke4 {[%emt 0:1:26]} g5 {[%emt 0:1:4]} (38... Bh6 $15 39. Kd3 Bf4 )39. h4 {[%emt 0:0:40]} Bxe3 {[%emt 0:4:17]} 40. Kxe3 {[%emt 0:0:0]} gxh4 $11 {[%emt 0:0:0] KR-KB} 41. Kd2 {[%emt 0:33:25]} Bd5 {[%emt 0:29:48]} 42. Re1 $2 {[%emt 0:2:51] This costs White the game.} ({White should play} 42. g5 $15 )Kd7 $19 {[%emt 0:8:4] [#] Strongly threatening ...h3.} 43. Re3 {[%emt 0:0:19]} (43. e6+ {was worth a try.} fxe6 44. fxe6+ Bxe6 45. Rh1 Bxg4 46. Rxh4 )a3 {[%emt 0:10:8]} 44. Kc1 {[%emt 0:1:29]} (44. c4 $142 a2 45. Ra3 Bxc4 46. Kc1 )Bg2 {[%emt 0:1:2]} 45. e6+ {[%emt 0:5:1]} Ke8 {[%emt 0:1:10]} 46. exf7+ {[%emt 0:2:20]} Kxf7 {[%emt 0:0:5]} 47. Re6 {[%emt 0:0:4]} b4 {[%emt 0:1:46]} 48. g5 {[%emt 0:1:55]} b3 {[%emt 0:0:54]} 49. Rf6+ {[%emt 0:0:40]} Kg8 {[%emt 0:0:30]} 50. Re6 {[%emt 0:0:13]} b2+ {[%emt 0:0:50]} 51. Kc2 {[%emt 0:0:46]} h3 {[%emt 0:0:23]} 52. Kd3 {[%emt 0:0:15] Weighted Error Value: White=0.93/Black=0.09 (flawless)   Loses game:     	White=1     	---        Mistake:       	White=3     	Black=3      Inaccurate:     	White=4     	Black=3      OK:         	---       	Black=2      Best:        	White=1     	Black=1} 0-1